fUSD/lending_fUSD_20260409
["ID","MTS","AMOUNT","RATE_DAILY","PERIOD"]
[420154450,1775734241110,-625.70111538,0.00013112,2]
[420154451,1775734241120,-500.0,0.00013112,2]
[420154452,1775734241130,-500.0,0.00013112,2]
[420154453,1775734241140,-500.0,0.00013112,2]
[420154454,1775734241149,-157.83382947,0.00013112,2]
[420154455,1775734241158,-450.44328727,0.00013112,2]
[420154456,1775734241167,-500.0,0.00013112,2]
[420154457,1775734241177,-500.0,0.00013112,2]
[420154458,1775734241186,-500.0,0.00013112,2]
[420154459,1775734241195,-500.0,0.00013112,2]
[420154460,1775734241205,-500.0,0.00013112,2]
[420154461,1775734241215,-500.0,0.00013112,2]
[420154462,1775734241224,-500.0,0.00013112,2]
[420154463,1775734241233,-500.0,0.00013112,2]
[420154464,1775734241242,-186.25823946,0.00013112,2]
[420154465,1775734241252,-500.0,0.00013112,2]
[420154466,1775734241262,-55157.03,0.00013113,2]
[420154467,1775734241271,-5895.37,0.00013164,2]
[420154468,1775734241281,-500.0,0.00013181,2]
[420154469,1775734241290,-150.49,0.00013354,2]
[420154470,1775734241299,-3240.0,0.00013425,2]
[420154471,1775734241309,-3000.0,0.00013518,2]
[420154472,1775734241319,-2913.2025,0.00013519,2]
[420154473,1775734241328,-242.95850966,0.00013611,2]
[420154474,1775734241338,-192.735,0.00013619,2]
[420154475,1775734241348,-1264.0,0.00013619,2]
[420154476,1775734241358,-926.0,0.00013619,2]
[420154477,1775734241367,-1218.0,0.00013619,2]
[420154478,1775734241376,-6023.0,0.00013619,2]
[420154479,1775734241385,-2471.0,0.00013619,2]
[420154480,1775734241395,-500.0,0.00013665,2]
[420154481,1775734241405,-218.19,0.00013681,2]
[420154482,1775734241415,-500.0,0.00013698,2]
[420154483,1775734241425,-500.0,0.00013698,2]
[420154484,1775734241434,-500.0,0.00013698,2]
[420154485,1775734241444,-500.0,0.00013698,2]
[420154486,1775734241454,-150.0,0.00013699,2]
[420154487,1775734241462,-561.96,0.00013699,2]
[420154488,1775734241472,-166.66,0.00013699,2]
[420154489,1775734241482,-500.0,0.00013699,2]
[420154490,1775734241491,-186.16,0.00013699,2]
[420154491,1775734241501,-1000.0,0.00013792,2]
[420154492,1775734241511,-166.66,0.00013836,2]
[420154493,1775734241521,-150.0,0.00013973,2]
[420154494,1775734241530,-166.66,0.00013973,2]
[420154495,1775734241540,-500.0,0.00013975,2]
[420154496,1775734241549,-500.0,0.00013975,2]
[420154497,1775734241559,-500.0,0.00013975,2]
[420154498,1775734241568,-326.81618405,0.00014079,2]
[420154499,1775734241578,-166.66,0.0001411,2]
[420154500,1775734241588,-503.0,0.00014155,2]
[420154501,1775734241598,-166.66,0.00014247,2]
[420154502,1775734241607,-2000.0,0.00014282,2]
[420154503,1775734241617,-409.59632991,0.00014296,2]
[420154504,1775734241627,-561.96,0.00014384,2]
[420154505,1775734241636,-166.66,0.00014384,2]
[420154506,1775734241646,-198.5807,0.000144,2]
[420154507,1775734241656,-1600.0,0.00014423,2]
[420154508,1775734241666,-247.3559217,0.00014507,2]
[420154509,1775734241675,-413.41807374,0.00014554,2]
[420154510,1775734241685,-500.0,0.00014675,2]
[420154511,1775734241695,-11463.03419464,0.00014817,2]
[420154512,1775734241705,-2500.0,0.00014865,2]
[420154513,1775734241714,-3000.0,0.00014888,2]
[420154514,1775734241724,-525.67,0.00014917,2]
[420154515,1775734241733,-200.0,0.00014917,2]
[420154516,1775734241743,-1191.11104075,0.00014917,2]
[420154517,1775734241753,-500.0,0.00014917,2]
[420154518,1775734241762,-578.20924308,0.00014917,2]
[420154519,1775734241772,-3996.64582228,0.00014917,2]
[420154520,1775734241781,-601.3376128,0.00014917,2]
[420154521,1775734241790,-402.92259234,0.00014917,2]
[420154522,1775734241800,-303.98027082,0.00014917,2]
[420154523,1775734241809,-743.50770149,0.00014917,2]
[420154524,1775734241818,-151.0,0.00014917,2]
[420154525,1775734241828,-174.61919141,0.00014917,2]
[420154526,1775734241838,-1500.0,0.00014917,2]
[420154527,1775734241847,-1500.0,0.00014917,2]
[420154528,1775734241857,-1500.0,0.00014917,2]
[420154529,1775734241866,-1500.0,0.00014917,2]
[420154530,1775734241876,-1500.0,0.00014917,2]
[420154531,1775734241885,-1500.0,0.00014917,2]
[420154532,1775734241894,-1500.0,0.00014917,2]
[420154533,1775734241904,-1500.0,0.00014917,2]
[420154534,1775734241914,-1500.0,0.00014917,2]
[420154535,1775734241923,-1500.0,0.00014917,2]
[420154536,1775734241933,-1627.46733313,0.00014917,2]
[420154537,1775734241944,-359.56877178,0.00014917,2]
[420154538,1775734241954,-620.74589584,0.00014924,2]
[420154539,1775734241963,-11463.03419464,0.00014937,2]
[420154541,1775734241973,-500.0,0.00014972,2]
[420154543,1775734241983,-4151.38121564,0.00014982,2]
[420154545,1775734241993,-233.07091074,0.00014984,2]
[420154547,1775734242002,-191.22499673,0.00014984,2]
[420154549,1775734242011,-255.32505,0.00014992,7]
[420154551,1775734242021,-186.169519,0.00014992,7]
[420154553,1775734242030,-160.0,0.00014992,2]
[420154555,1775734242040,-247.499289,0.00014992,2]
[420154557,1775734242050,-334.998578,0.00014992,2]
[420154559,1775734242059,-527.38844467,0.00015,2]
[420154561,1775734242068,-300.0,0.00015,2]
[420154563,1775734242078,-703.0,0.00015,2]
[420154565,1775734242087,-500.0,0.00015027,2]
[420154566,1775734242096,-613.57,0.00015055,2]
[420154567,1775734242106,-11463.03419464,0.00015058,2]
[420154568,1775734242115,-239.984145,0.00015058,7]
[420154569,1775734242125,-561.96,0.00015068,2]
[420154570,1775734242134,-500.0,0.00015082,2]
[420154571,1775734242144,-1744.95,0.00015112,2]
[420154572,1775734242154,-500.0,0.00015137,2]
[420154573,1775734242163,-350.0,0.00015144,2]
[420154574,1775734242173,-1000.0,0.00015162,2]
[420154575,1775734242183,-11463.03419464,0.00015178,2]
[420154576,1775734242193,-525.67,0.00015191,2]
[420154577,1775734242202,-500.0,0.00015192,2]
[420154578,1775734242212,-2526.43376,0.000152,2]
[420154579,1775734242222,-503.0,0.000152,3]
[420154580,1775734242231,-500.0,0.00015223,2]
[420154581,1775734242241,-500.0,0.00015247,2]
[420154582,1775734242250,-162.0,0.00015264,2]
[420154583,1775734242259,-454.46,0.00015269,2]
[420154584,1775734242269,-250.0,0.00015273,2]
[420154585,1775734242278,-359.66009165,0.00015277,2]
[420154586,1775734242287,-11463.03419464,0.00015298,2]
[420154587,1775734242297,-500.0,0.00015302,2]
[420154588,1775734242307,-604.03276811,0.0001532,2]
[420154589,1775734242316,-424.25109688,0.0001532,2]
[420154590,1775734242326,-500.0,0.00015357,2]
[420154591,1775734242335,-3377.14,0.00015382,2]
[420154592,1775734242345,-160.315,0.00015382,2]
[420154593,1775734242355,-512.63541417,0.00015396,2]
[420154594,1775734242365,-500.0,0.00015405,2]
[420154595,1775734242374,-2000.0,0.00015405,2]
[420154596,1775734242384,-5000.0,0.0001541,2]
[420154597,1775734242393,-500.0,0.00015412,2]
[420154598,1775734242403,-11463.03419464,0.00015419,2]
[420154599,1775734242413,-525.67,0.00015465,2]
[420154600,1775734242423,-200.0,0.00015465,2]
[420154601,1775734242432,-1235.18214925,0.00015465,2]
[420154602,1775734242442,-890.44742925,0.00015465,2]
[420154603,1775734242452,-181.08010149,0.00015465,2]
[420154604,1775734242461,-500.0,0.00015497,2]
[420154605,1775734242470,-300.000001,0.000155,3]
[420154606,1775734242480,-151.0,0.00015507,2]
[420154607,1775734242490,-613.57,0.00015509,2]
[420154608,1775734242499,-613.57,0.00015509,2]
[420154609,1775734242509,-454.46,0.00015529,2]
[420154610,1775734242518,-11463.03419464,0.00015539,2]
[420154611,1775734242528,-421.0,0.00015577,5]
[420154612,1775734242537,-500.0,0.00015584,2]
[420154613,1775734242546,-200.0,0.00015584,2]
[420154614,1775734242557,-1000.0,0.00015592,2]
[420154615,1775734242566,-1081.5620595,0.00015595,2]
[420154616,1775734242576,-846002.67867167,0.000156,2]
[420154625,1775734242922,-160.0,0.00013101,2]
[420154626,1775734242932,-415.0,0.00013619,2]
[420154627,1775734242942,-46.0,0.00013699,2]
[420154628,1775734243234,-954.0,0.00013699,2]
[420154629,1775734243244,-500.0,0.00013973,2]
[420154630,1775734243254,-500.0,0.00014247,2]
[420154631,1775734243264,-500.0,0.00014521,2]
[420154632,1775734243275,-644.0,0.000152,2]
[420154633,1775734243284,-5585.12854142,0.000156,2]
[420154661,1775734247203,-6156.61620423,0.00013511,2]
[420154662,1775734247213,-341.75694278,0.00015396,2]
[420154663,1775734247223,-185766.96913097,0.000156,2]
[420154666,1775734704903,303.43804626,0.0001611,120]
[420154668,1775734887719,283.75652057,9.02e-05,2]
[420154669,1775735087244,204.83,5.401e-05,2]
[420154670,1775735087977,204.83,5.685e-05,2]
[420154671,1775735088194,204.83,5.969e-05,2]
[420154672,1775735088368,204.83,6.253e-05,2]
[420154673,1775735088560,204.83,6.538e-05,2]
[420154674,1775735088764,204.83,6.822e-05,2]
[420154675,1775735088959,204.83,7.106e-05,2]
[420154676,1775735089160,204.83,7.39e-05,2]
[420154677,1775735089601,204.83,7.675e-05,2]
[420154678,1775735089806,204.83,7.959e-05,2]
[420154679,1775735090205,204.83,8.243e-05,2]
[420154680,1775735090419,204.83,8.527e-05,2]
[420154681,1775735091147,204.83,8.812e-05,2]
[420154682,1775735147140,-1620.24347943,9.02e-05,2]
[420154683,1775735147163,-204.83,9.096e-05,2]
[420154684,1775735147185,-204.83,9.38e-05,2]
[420154685,1775735147221,-204.83,9.664e-05,2]
[420154686,1775735147243,-9.42514827,9.949e-05,2]
[420154687,1775735350403,-195.40485173,9.949e-05,2]
[420154688,1775735350425,-204.83,0.00010233,2]
[420154689,1775735350448,-204.83,0.00010517,2]
[420154690,1775735350468,-233.76698089,0.00010729,2]
[420154691,1775735350488,-204.83,0.00010801,2]
[420154692,1775735350510,-300.0,0.00010829,2]
[420154693,1775735350531,-484.19747155,0.00010829,2]
[420154710,1775735432614,-200.0,9.2e-05,2]
[420154711,1775735432624,-1200.0,0.00010829,2]
[420154712,1775735432634,-1200.0,0.00010829,2]
[420154713,1775735432643,-16707.89,0.0001083,2]
[420154714,1775735432653,-1483.9,0.00010855,2]
[420154715,1775735432663,-195.0,0.00011035,2]
[420154716,1775735432672,-195.0,0.00011035,2]
[420154717,1775735432682,-195.0,0.00011035,2]
[420154718,1775735432692,-195.0,0.00011035,2]
[420154719,1775735432702,-6801.71,0.00011161,2]
[420154720,1775735432711,-258.37,0.00011498,2]
[420154721,1775735432721,-6748.46,0.00011507,2]
[420154722,1775735432731,-615.3376152,0.0001158,2]
[420154723,1775735432741,-1000.0,0.0001158,2]
[420154724,1775735432751,-150.0,0.0001158,2]
[420154725,1775735432760,-150.0,0.00011581,2]
[420154726,1775735432770,-2500.0,0.00011581,2]
[420154727,1775735432779,-3533.117,0.00011581,2]
[420154728,1775735432789,-160.315,0.00011581,2]
[420154729,1775735432798,-26243.05274724,0.00011581,2]
[420154730,1775735432808,-3688.0,0.000116,2]
[420154731,1775735432818,-2000.0,0.000116,2]
[420154732,1775735432827,-180.39456153,0.000116,2]
[420154733,1775735432837,-19760.81793987,0.000116,2]
[420154734,1775735432847,-3641.3346,0.00011644,2]
[420154735,1775735432856,-9108.15554395,0.00011662,2]
[420154736,1775735432866,-500.0,0.00011673,2]
[420154737,1775735433336,-500.0,0.00011673,2]
[420154738,1775735433357,-500.0,0.00011673,2]
[420154739,1775735433368,-500.0,0.00011673,2]
[420154740,1775735433378,-500.0,0.00011673,2]
[420154741,1775735433388,-500.51505804,0.00011673,2]
[420154742,1775735433398,-500.0,0.00011673,2]
[420154743,1775735433407,-349.14987639,0.00011673,2]
[420154744,1775735433417,-389.17525049,0.00011673,2]
[420154745,1775735433427,-500.0,0.00011673,2]
[420154746,1775735433448,-151.0,0.00011674,2]
[420154747,1775735433459,-151.0,0.00011674,2]
[420154748,1775735433470,-151.0,0.00011674,2]
[420154749,1775735433481,-500.0,0.00011674,2]
[420154750,1775735433491,-500.0,0.00011674,2]
[420154751,1775735433501,-500.0,0.00011674,2]
[420154752,1775735433511,-200.0,0.00011674,2]
[420154753,1775735433521,-500.0,0.00011674,2]
[420154754,1775735433531,-500.0,0.00011674,2]
[420154755,1775735433541,-389.83591401,0.00011674,2]
[420154756,1775735433552,-500.0,0.00011674,2]
[420154757,1775735433562,-500.0,0.00011674,2]
[420154758,1775735433571,-500.0,0.00011674,2]
[420154759,1775735433582,-500.0,0.00011674,2]
[420154760,1775735433591,-500.0,0.00011674,2]
[420154761,1775735433602,-500.0,0.00011674,2]
[420154762,1775735433612,-500.0,0.00011674,2]
[420154763,1775735433622,-594.61806827,0.00011674,2]
[420154764,1775735433632,-500.0,0.00011674,2]
[420154765,1775735433643,-151.0,0.00011674,2]
[420154766,1775735433653,-747.11404734,0.00011674,2]
[420154767,1775735433663,-151.0,0.00011674,2]
[420154768,1775735433673,-151.0,0.00011674,2]
[420154769,1775735433683,-151.0,0.00011674,2]
[420154770,1775735433694,-151.0,0.00011674,2]
[420154771,1775735433704,-151.0,0.00011674,2]
[420154772,1775735433715,-151.0,0.00011674,2]
[420154773,1775735433725,-151.0,0.00011674,2]
[420154774,1775735433736,-151.0,0.00011674,2]
[420154775,1775735433746,-151.0,0.00011674,2]
[420154776,1775735433757,-151.0,0.00011674,2]
[420154777,1775735433767,-151.0,0.00011674,2]
[420154778,1775735433777,-151.0,0.00011674,2]
[420154779,1775735433787,-151.0,0.00011674,2]
[420154780,1775735433798,-151.0,0.00011674,2]
[420154781,1775735433809,-151.0,0.00011678,2]
[420154782,1775735433819,-151.0,0.00011678,2]
[420154783,1775735433829,-151.0,0.00011678,2]
[420154784,1775735433838,-500.0,0.0001168,2]
[420154785,1775735433848,-500.0,0.0001168,2]
[420154786,1775735433858,-500.0,0.0001168,2]
[420154787,1775735433867,-500.0,0.0001168,2]
[420154788,1775735433877,-500.0,0.0001168,2]
[420154789,1775735433887,-500.0,0.0001168,2]
[420154790,1775735433896,-500.0,0.0001168,2]
[420154791,1775735433907,-500.0,0.0001168,2]
[420154792,1775735433917,-500.0,0.0001168,2]
[420154793,1775735433927,-500.0,0.0001168,2]
[420154794,1775735433942,-500.0,0.0001168,2]
[420154795,1775735433952,-500.0,0.0001168,2]
[420154796,1775735433962,-500.0,0.0001168,2]
[420154797,1775735433972,-500.0,0.0001168,2]
[420154798,1775735433983,-500.0,0.0001168,2]
[420154799,1775735433993,-500.0,0.0001168,2]
[420154800,1775735434004,-500.0,0.0001168,2]
[420154801,1775735434014,-538.57216017,0.0001168,2]
[420154802,1775735434025,-500.0,0.0001168,2]
[420154803,1775735434035,-500.0,0.0001168,2]
[420154804,1775735434046,-500.0,0.0001168,2]
[420154805,1775735434057,-500.0,0.0001168,2]
[420154806,1775735434067,-500.0,0.0001168,2]
[420154807,1775735434077,-500.0,0.0001168,2]
[420154808,1775735434089,-500.0,0.0001168,2]
[420154809,1775735434099,-500.0,0.0001168,2]
[420154810,1775735434110,-500.0,0.0001168,2]
[420154811,1775735434120,-500.0,0.0001168,2]
[420154812,1775735434130,-500.0,0.0001168,2]
[420154813,1775735434140,-500.0,0.0001168,2]
[420154814,1775735434151,-500.0,0.0001168,2]
[420154815,1775735434161,-500.0,0.0001168,2]
[420154816,1775735434172,-500.0,0.0001168,2]
[420154817,1775735434182,-500.0,0.0001168,2]
[420154818,1775735434192,-500.0,0.0001168,2]
[420154819,1775735434203,-500.0,0.0001168,2]
[420154820,1775735434213,-500.0,0.0001168,2]
[420154821,1775735434223,-500.0,0.0001168,2]
[420154822,1775735434234,-500.0,0.0001168,2]
[420154823,1775735434244,-500.0,0.0001168,2]
[420154824,1775735434254,-500.0,0.0001168,2]
[420154825,1775735434264,-500.0,0.0001168,2]
[420154826,1775735434274,-500.0,0.0001168,2]
[420154827,1775735434284,-500.0,0.0001168,2]
[420154828,1775735434295,-500.0,0.0001168,2]
[420154829,1775735434305,-350.0,0.0001168,2]
[420154830,1775735434315,-500.0,0.0001168,2]
[420154831,1775735434326,-500.0,0.0001168,2]
[420154832,1775735434336,-500.0,0.0001168,2]
[420154833,1775735434347,-500.0,0.0001168,2]
[420154834,1775735434357,-500.0,0.0001168,2]
[420154835,1775735434368,-500.0,0.0001168,2]
[420154836,1775735434378,-500.0,0.0001168,2]
[420154837,1775735434388,-500.0,0.0001168,2]
[420154838,1775735434399,-500.0,0.0001168,2]
[420154839,1775735434409,-500.0,0.0001168,2]
[420154840,1775735434419,-500.0,0.0001168,2]
[420154841,1775735434430,-500.0,0.0001168,2]
[420154842,1775735434440,-500.0,0.0001168,2]
[420154843,1775735434455,-500.0,0.0001168,2]
[420154844,1775735434466,-500.0,0.0001168,2]
[420154845,1775735434477,-500.0,0.0001168,2]
[420154846,1775735434488,-500.0,0.0001168,2]
[420154847,1775735434498,-500.0,0.0001168,2]
[420154848,1775735434508,-500.0,0.0001168,2]
[420154849,1775735434518,-372.41380051,0.0001168,2]
[420154850,1775735434529,-525.67,0.0001168,2]
[420154851,1775735434539,-150.0,0.000117,2]
[420154852,1775735434549,-66775.26119405,0.00011781,7]
[420154853,1775735434560,-700.0,0.000118,4]
[420154854,1775735434571,-181.0,0.0001184,2]
[420154855,1775735434581,-500.0,0.00011862,2]
[420154856,1775735434591,-500.0,0.00011862,2]
[420154857,1775735434602,-500.0,0.00011862,2]
[420154858,1775735434613,-500.0,0.00011862,2]
[420154859,1775735434623,-500.0,0.00011862,2]
[420154860,1775735434633,-500.0,0.00011862,2]
[420154861,1775735434643,-500.0,0.00011862,2]
[420154862,1775735434653,-500.0,0.00011862,2]
[420154863,1775735434663,-500.0,0.00011862,2]
[420154864,1775735434673,-500.0,0.00011862,2]
[420154865,1775735434683,-500.0,0.00011862,2]
[420154866,1775735434693,-500.0,0.00011862,2]
[420154867,1775735434704,-500.0,0.00011862,2]
[420154868,1775735434714,-500.0,0.00011862,2]
[420154869,1775735434724,-321.26673206,0.00011862,2]
[420154870,1775735434734,-150.0,0.00011862,2]
[420154871,1775735434745,-150.0,0.00011862,2]
[420154872,1775735434755,-223.44111523,0.00011862,2]
[420154873,1775735434765,-1500.0,0.000119,4]
[420154874,1775735434775,-195.0,0.00011912,2]
[420154875,1775735434785,-1680.0,0.00011912,2]
[420154876,1775735434796,-525.67,0.00011954,2]
[420154877,1775735434807,-11238.5528447,0.00012014,2]
[420154878,1775735434824,-15004.49990245,0.00012014,2]
[420154879,1775735434834,-19760.81793985,0.00012045,2]
[420154880,1775735434844,-308.33817737,0.00012088,2]
[420154881,1775735434855,-1000.0,0.00012221,2]
[420154882,1775735434865,-1000.0,0.00012221,2]
[420154883,1775735434876,-660.20305427,0.00012221,2]
[420154884,1775735434886,-176.20779835,0.00012221,2]
[420154885,1775735434896,-500.0,0.00012221,2]
[420154886,1775735434907,-1000.0,0.00012221,2]
[420154887,1775735434918,-200.0,0.00012222,2]
[420154888,1775735434929,-525.67,0.00012228,2]
[420154889,1775735434939,-18906.91203913,0.00012446,2]
[420154890,1775735434952,-7336.14070802,0.00012446,2]
[420154891,1775735434965,-19760.81793985,0.00012491,2]
[420154892,1775735434976,-525.67,0.00012502,2]
[420154893,1775735434986,-150.0,0.00012615,2]
[420154894,1775735434996,-255.0,0.00012645,2]
[420154895,1775735435007,-3926.93,0.00012732,2]
[420154896,1775735435018,-5838.12,0.00012753,2]
[420154897,1775735435028,-1500.0,0.00012768,2]
[420154898,1775735435039,-1500.0,0.00012768,2]
[420154899,1775735435050,-200.0,0.0001277,2]
[420154900,1775735435060,-525.67,0.00012776,2]
[420154901,1775735435070,-5217.24905487,0.00012815,2]
[420154902,1775735435080,-274.11,0.00012877,2]
[420154903,1775735435091,-26243.05274715,0.00012879,2]
[420154904,1775735435102,-19760.81793985,0.00012936,2]
[420154905,1775735435112,-151.41120788,0.00012962,2]
[420154906,1775735435122,-160.0,0.00012964,2]
[420154907,1775735435133,-160.0,0.00012964,2]
[420154908,1775735435143,-172.9058,0.00013,2]
[420154909,1775735435154,-525.7,0.0001305,2]
[420154910,1775735435164,-603.58833854,0.00013062,2]
[420154911,1775735435175,-2351.0,0.00013104,2]
[420154912,1775735435185,-503.0,0.0001311,2]
[420154913,1775735435195,-3000.0,0.00013244,2]
[420154914,1775735435206,-12584.87511917,0.00013311,2]
[420154915,1775735435219,-13658.17762798,0.00013311,2]
[420154916,1775735435230,-1500.0,0.00013316,2]
[420154917,1775735435240,-1500.0,0.00013316,2]
[420154918,1775735435250,-200.0,0.00013318,2]
[420154919,1775735435261,-19760.81793985,0.00013382,2]
[420154920,1775735435271,-5217.24905487,0.00013432,2]
[420154921,1775735435281,-151.41120788,0.00013452,2]
[420154922,1775735435291,-254.405063,0.00013487,2]
[420154923,1775735435302,-180.0,0.00013699,2]
[420154924,1775735435312,-150.0,0.00013699,2]
[420154925,1775735435322,-2395.0,0.00013699,2]
[420154926,1775735435332,-150.0,0.00013699,2]
[420154927,1775735435343,-158.67,0.00013699,2]
[420154928,1775735435353,-200.0,0.00013699,2]
[420154929,1775735435363,-186.16,0.00013699,2]
[420154930,1775735435374,-786.15,0.00013699,2]
[420154931,1775735435384,-26243.05274715,0.00013744,2]
[420154932,1775735435395,-1400.0,0.00013792,2]
[420154933,1775735435406,-467.18,0.000138,2]
[420154934,1775735435416,-433.0,0.00013803,2]
[420154935,1775735435426,-371.427863,0.00013809,2]
[420154936,1775735435436,-371.427863,0.00013809,2]
[420154937,1775735435446,-371.427863,0.00013809,2]
[420154938,1775735435456,-151.0,0.00013809,2]
[420154939,1775735435467,-371.427863,0.00013809,2]
[420154940,1775735435477,-1293.90316,0.00013809,2]
[420154941,1775735435487,-151.0,0.00013809,2]
[420154942,1775735435497,-1293.90316,0.00013809,2]
[420154943,1775735435508,-151.0,0.00013809,2]
[420154944,1775735435518,-1293.90316,0.00013809,2]
[420154945,1775735435528,-206.655348,0.00013809,2]
[420154946,1775735435538,-550.922457,0.00013809,2]
[420154947,1775735435547,-509.32745,0.00013809,2]
[420154948,1775735435558,-1293.90316,0.00013809,2]
[420154949,1775735435568,-206.655348,0.00013809,2]
[420154950,1775735435579,-550.922457,0.00013809,2]
[420154951,1775735435588,-509.32745,0.00013809,2]
[420154952,1775735435598,-37.652335,0.00013809,2]
[420154955,1775735438194,-441.68447343,0.0001178,2]
[420154961,1775735441839,-58.31552657,0.0001178,2]
[420154962,1775735441849,-113.347665,0.00013809,2]
[420154963,1775735441858,-206.655348,0.00013809,2]
[420154964,1775735441867,-550.922457,0.00013809,2]
[420154965,1775735441876,-151.0,0.00013809,2]
[420154966,1775735441885,-509.32745,0.00013809,2]
[420154967,1775735441895,-151.0,0.00013809,2]
[420154968,1775735441904,-550.922457,0.00013809,2]
[420154969,1775735441914,-151.0,0.00013809,2]
[420154970,1775735441923,-509.32745,0.00013809,2]
[420154971,1775735441933,-1223.280238,0.00013809,2]
[420154972,1775735441943,-206.655348,0.00013809,2]
[420154973,1775735442414,-249.748488,0.00013809,2]
[420154974,1775735442433,-1223.280238,0.00013809,2]
[420154975,1775735442443,-151.0,0.00013809,2]
[420154976,1775735442453,-151.0,0.00013809,2]
[420154977,1775735442462,-1223.280238,0.00013809,2]
[420154978,1775735442472,-291.438694,0.00013809,2]
[420154979,1775735442482,-638.564593,0.00013809,2]
[420154980,1775735442491,-151.0,0.00013809,2]
[420154981,1775735442501,-460.104724,0.00013809,2]
[420154982,1775735442510,-1223.280238,0.00013809,2]
[420154983,1775735442519,-638.564593,0.00013809,2]
[420154984,1775735442529,-151.0,0.00013809,2]
[420154985,1775735442538,-460.104724,0.00013809,2]
[420154986,1775735442548,-638.564593,0.00013809,2]
[420154987,1775735442558,-578.068022,0.00013809,2]
[420154988,1775735442567,-460.104724,0.00013809,2]
[420154989,1775735442577,-638.564593,0.00013809,2]
[420154990,1775735442586,-578.068022,0.00013809,2]
[420154991,1775735442596,-460.104724,0.00013809,2]
[420154992,1775735442605,-578.068022,0.00013809,2]
[420154993,1775735442614,-151.0,0.00013809,2]
[420154994,1775735442625,-578.068022,0.00013809,2]
[420154995,1775735442634,-151.0,0.00013809,2]
[420154996,1775735442644,-151.0,0.00013809,2]
[420154997,1775735442654,-428.509352,0.00013809,2]
[420154998,1775735442663,-151.0,0.00013809,2]
[420154999,1775735442672,-428.509352,0.00013809,2]
[420155000,1775735442682,-428.509352,0.00013809,2]
[420155001,1775735442691,-428.509352,0.00013809,2]
[420155002,1775735442700,-151.0,0.00013809,2]
[420155003,1775735442709,-151.0,0.00013809,2]
[420155004,1775735442719,-151.0,0.00013809,2]
[420155005,1775735442728,-151.0,0.00013809,2]
[420155006,1775735442738,-151.0,0.00013809,2]
[420155007,1775735442747,-151.0,0.00013809,2]
[420155008,1775735442757,-151.0,0.00013809,2]
[420155009,1775735442767,-151.0,0.00013809,2]
[420155010,1775735442776,-151.0,0.00013809,2]
[420155011,1775735442785,-151.0,0.00013809,2]
[420155012,1775735442796,-378.316153,0.00013809,2]
[420155013,1775735442805,-854.312616,0.00013809,2]
[420155014,1775735442815,-378.316153,0.00013809,2]
[420155015,1775735442825,-680.274183,0.00013809,2]
[420155016,1775735442834,-378.316153,0.00013809,2]
[420155017,1775735442843,-854.312616,0.00013809,2]
[420155018,1775735442853,-680.274183,0.00013809,2]
[420155019,1775735442863,-378.316153,0.00013809,2]
[420155020,1775735442873,-854.312616,0.00013809,2]
[420155021,1775735442883,-680.274183,0.00013809,2]
[420155022,1775735442893,-854.312616,0.00013809,2]
[420155023,1775735442903,-680.274183,0.00013809,2]